[Event "European Amateur Chess-ch 2022"]
[Site "Zagreb"]
[Date "2022.08.15"]
[Round "2.18"]
[White "Peric, Bernard"]
[Black "Draganic, Stjepan"]
[Result "1/2-1/2"]
[ECO "A59"]
[WhiteElo "2112"]
[BlackElo "2025"]
[Annotator "TA"]
[PlyCount "119"]
[EventDate "2022.08.14"]
[EventCountry "CRO"]
[SourceTitle "playchess.com"]
[Source "ChessBase"]
[SourceQuality "1"]
[TimeControl "40/5400+30:1800+30"]

{[%evp 22,119,53,31,62,11,11,0,0,0,6,-9,-4,-25,0,-61,-69,-72,-68,-74,-74,-156,-88,-189,-170,-187,-180,-177,-179,-210,-169,-164,-74,-86,-38,-102,-69,-363,-341,-338,-350,-364,-364,-370,-354,-386,-293,-468,-345,-573,-333,-432,-456,-456,-446,-449,-416,-414,-304,-317,-326,-394,-376,-382,-376,-352,-300,-380,-344,-383,-372,-357,-343,-394,-313,-353,-360,-388,-406,-392,-196,-733,-8,-8,-8,-8,-8,-8,-8,-8,-8,-8,-8,-8,-8,-8,-8,-8,-8,-8]} 1. d4 Nf6 2. c4 c5 3. d5 b5 4. cxb5 a6 5. bxa6 d6 6. Nc3 Bxa6 7. e4 Bxf1 8. Kxf1 Nbd7 9. g3 g6 10. Kg2 Bg7 11. f4 O-O 12. Nf3 Qb6 {A59: Benko/Volga Gambit: White castles by hand.} 13. Qe2 (13. Re1 $14) 13... Ne8 14. e5 Nc7 {[#]} 15. Rd1 $146 ({Predecessor:} 15. h4 e6 16. dxe6 Nxe6 17. Nd5 Qb7 18. Ne7+ Kh8 19. h5 g5 20. h6 Bxe5 21. fxe5 {0-1 (29) Perkampus,L (2086)-Graf,L (1984) Playchess.com INT 2020}) 15... Rfb8 16. b3 Qa6 17. Qxa6 Rxa6 18. Re1 ({Better is} 18. Be3 $11) 18... Rxb3 $15 19. axb3 Rxa1 20. exd6 exd6 21. Ne4 (21. Re7 $142 Rxc1 22. Ne4) 21... Nb5 ({Not} 21... Nxd5 22. Nxd6 Bc3 23. Bd2 $11) (21... Ra6 $142 22. Nfd2 f5) 22. Bd2 (22. g4 $17) 22... Ra2 $19 23. Kh3 h6 {White must now prevent ...f5.} 24. g4 Nb6 $1 25. Rd1 Rb2 26. Ba5 Nd7 (26... Rxb3 $19 {has better winning chances.} 27. Ned2 Rb2 $1 28. Bxb6 Nc3) 27. Rd3 Nf6 (27... Re2 $17 28. Ng3 Ra2) 28. Ned2 (28. Nxf6+ $15 Bxf6 29. Nd2) 28... h5 29. gxh5 {[%mdl 8192]} ({Only move:} 29. g5 $15 Ng4 30. Kg3) 29... Nxh5 30. Re3 Nxf4+ 31. Kg4 Nxd5 32. Re8+ Bf8 {Threatens to win with ...Nf6+.} 33. Rb8 Nbc3 34. Bd8 (34. Bxc3 $142 Nxc3 35. h4) 34... Kg7 35. Bg5 $2 (35. Rb7) 35... f5+ 36. Kh4 Be7 37. Rb7 Kf8 {Strongly threatening ...Ne4.} 38. Rb8+ {[#]} Kf7 $1 {aiming for ...Ne4.} 39. Rb7 Ke6 40. Bxe7 Nxe7 41. Ng5+ Kd5 42. Nc4 Rxh2+ 43. Kg3 Rh5 44. Nh3 Ne4+ 45. Kg2 Rh7 46. Nf4+ Kd4 47. Ne2+ Kd3 48. Nf4+ Kc3 49. Ne3 {[%cal Ob7e7]} Kd4 50. Nc4 d5 (50... g5 $142 51. Ng6 {[#]} Nxg6 $1 52. Rxh7 f4) 51. Na5 $2 (51. Ne2+ Kd3 52. Nf4+ Kc3 53. Nxd5+ Nxd5 54. Rxh7) 51... g5 $2 ({Black should play} 51... Rh4 $19 52. Nh3 Nc8) 52. Rxe7 $1 $11 {[%mdl 64] And now Nc6+ would win. Remove Defender, Decoy. The position is equal.} Rxe7 {[%mdl 4096] Endgame KRN-KNN} 53. Nc6+ {Pair of Knights!} Kc3 {[%cal Og5f4]} 54. Nxd5+ Kxb3 55. Ncxe7 Nd6 56. Kf3 c4 57. Kg3 c3 58. Nxc3 f4+ 59. Kg4 Kxc3 60. Nd5+ {Whites escaped into a draw.  Weighted Error Value: White=0.54/Black=0.40} 1/2-1/2

[Event "European Amateur Chess-ch 2022"]
[Site "Zagreb"]
[Date "2022.08.15"]
[Round "2.19"]
[White "Maravic, Ivan"]
[Black "Lasic, Luka"]
[Result "1-0"]
[ECO "A57"]
[WhiteElo "2009"]
[BlackElo "2077"]
[Annotator "NA RC"]
[PlyCount "77"]
[EventDate "2022.08.14"]
[EventCountry "CRO"]
[SourceTitle "playchess.com"]
[Source "ChessBase"]
[SourceQuality "1"]
[TimeControl "40/5400+30:1800+30"]

1. d4 Nf6 2. c4 c5 3. d5 b5 4. cxb5 a6 5. e3 e6 6. Nc3 Bb7 7. e4 axb5 8. Bxb5 Qa5 9. Qe2 Be7 10. Bd2 Qb6 11. dxe6 fxe6 12. Nf3 O-O 13. O-O Nc6 14. e5 Nd5 15. Nxd5 exd5 16. b3 Rxf3 17. Bxc6 Rff8 18. Bxb7 Qxb7 19. f4 d6 20. Bc3 Rae8 21. exd6 Bxd6 22. Be5 Rf6 23. Qh5 g6 24. Qh6 Bxe5 25. fxe5 Rfe6 26. Rae1 Qe7 27. Qc1 Kg7 28. Re2 Qc7 29. Qf4 d4 30. Re4 Qa7 31. a4 Qb8 32. Qf7+ Kh8 33. Rh4 h5 34. Rf5 Rxe5 35. Qf6+ Kh7 36. Qf7+ Kh6 37. Rhxh5+ gxh5 38. Qxh5+ Kg7 39. Rf7+ 1-0

[Event "European Amateur Chess-ch 2022"]
[Site "Zagreb"]
[Date "2022.08.15"]
[Round "2.20"]
[White "Janiszewski, Maciej"]
[Black "Raljic, Mirko"]
[Result "1/2-1/2"]
[ECO "C45"]
[WhiteElo "2075"]
[BlackElo "2023"]
[Annotator "NA RC"]
[PlyCount "66"]
[EventDate "2022.08.14"]
[EventCountry "CRO"]
[SourceTitle "playchess.com"]
[Source "ChessBase"]
[SourceQuality "1"]
[TimeControl "40/5400+30:1800+30"]

1. e4 e5 2. Nf3 Nc6 3. d4 exd4 4. Nxd4 Bc5 5. Nb3 Bb6 6. Qe2 d6 7. Be3 Nf6 8. Nc3 Qe7 9. O-O-O Be6 10. h3 O-O-O 11. f4 Bxb3 12. axb3 Nxe4 13. Bxb6 Nxc3 14. Qxe7 Nxe7 15. Re1 axb6 16. Rxe7 Nd5 17. Rxf7 Rd7 18. Rxd7 Kxd7 19. g3 Re8 20. Kd2 c6 21. Bd3 h6 22. Bf5+ Kc7 23. Bg6 Re7 24. f5 Nf6 25. Rg1 b5 26. g4 Ne4+ 27. Kc1 d5 28. h4 Kd6 29. g5 hxg5 30. hxg5 Ke5 31. Re1 Kd6 32. Rg1 Ke5 33. Re1 Kd6 1/2-1/2

[Event "European Amateur Chess-ch 2022"]
[Site "Zagreb"]
[Date "2022.08.15"]
[Round "2.21"]
[White "Okrosa, Marijan"]
[Black "Korov, Zvonko"]
[Result "0-1"]
[ECO "E14"]
[WhiteElo "2059"]
[BlackElo "2015"]
[Annotator "NA RC"]
[PlyCount "78"]
[EventDate "2022.08.14"]
[EventCountry "CRO"]
[SourceTitle "playchess.com"]
[Source "ChessBase"]
[SourceQuality "1"]
[TimeControl "40/5400+30:1800+30"]

1. d4 Nf6 2. Nf3 e6 3. e3 b6 4. Bd3 Bb7 5. O-O Be7 6. c4 Ne4 7. Nfd2 f5 8. f3 Nxd2 9. Bxd2 O-O 10. e4 fxe4 11. fxe4 Nc6 12. Bc3 Nb4 13. Bxb4 Bxb4 14. a3 Be7 15. e5 Rxf1+ 16. Kxf1 Qf8+ 17. Kg1 Qf4 18. Bf1 Rf8 19. Nc3 Qf2+ 20. Kh1 Qxb2 21. Ne2 Be4 22. Ng3 Bg6 23. a4 a5 24. Be2 Bb4 25. h4 Bc3 26. Rc1 Bxd4 27. h5 Be3 28. hxg6 Qxc1 29. gxh7+ Kxh7 30. Qxc1 Bxc1 31. c5 Bf4 32. Ne4 bxc5 33. Nxc5 Rf7 34. Nb3 Bxe5 35. Nxa5 c6 36. Nc4 Bb8 37. a5 d5 38. Nb6 e5 39. a6 e4 0-1

[Event "European Amateur Chess-ch 2022"]
[Site "Zagreb"]
[Date "2022.08.15"]
[Round "2.22"]
[White "Kanizaj, Benjamin"]
[Black "Green, Michael"]
[Result "0-1"]
[ECO "B12"]
[WhiteElo "2050"]
[BlackElo "1997"]
[Annotator "NA RC"]
[PlyCount "78"]
[EventDate "2022.08.14"]
[EventCountry "CRO"]
[SourceTitle "playchess.com"]
[Source "ChessBase"]
[SourceQuality "1"]
[TimeControl "40/5400+30:1800+30"]

1. e4 c6 2. d4 d5 3. e5 Bf5 4. Nf3 e6 5. Be2 c5 6. O-O Ne7 7. c4 Nbc6 8. Nc3 dxc4 9. dxc5 Nd5 10. Nxd5 Qxd5 11. Qa4 Bd3 12. Bxd3 cxd3 13. b4 Be7 14. Bd2 O-O 15. Rfe1 a5 16. b5 Nb4 17. Bxb4 axb4 18. Qxb4 Bxc5 19. Qd2 Ra3 20. Reb1 b6 21. h3 h6 22. Rb2 Rfa8 23. Kh2 Bd4 24. Nxd4 Qxd4 25. Re1 Rd8 26. Rb4 Qc5 27. Rg4 Kf8 28. Qf4 d2 29. Rxg7 Qc7 30. Rd1 Kxg7 31. Qg4+ Kh7 32. Qb4 Rad3 33. Qe4+ f5 34. Qh4 Qxe5+ 35. f4 Qg7 36. Qf2 Rg8 37. Qe2 Qd4 38. Qxe6 Qxf4+ 39. Kh1 Rxh3+ 0-1

[Event "European Amateur Chess-ch 2022"]
[Site "Zagreb"]
[Date "2022.08.15"]
[Round "2.23"]
[White "Takac, Zvonko"]
[Black "Tomic, Stjepan"]
[Result "0-1"]
[ECO "D31"]
[WhiteElo "2040"]
[BlackElo "1990"]
[Annotator "NA RC"]
[PlyCount "111"]
[EventDate "2022.08.14"]
[EventCountry "CRO"]
[SourceTitle "playchess.com"]
[Source "ChessBase"]
[SourceQuality "1"]
[TimeControl "40/5400+30:1800+30"]

1. Nf3 d5 2. d4 c6 3. c4 e6 4. Nc3 dxc4 5. a4 Bb4 6. e3 b5 7. Ne5 Nf6 8. axb5 cxb5 9. Qf3 Qd5 10. Be2 Bb7 11. O-O Bxc3 12. bxc3 Qxf3 13. gxf3 Nbd7 14. Nxd7 Kxd7 15. e4 Rhc8 16. Be3 a6 17. Rfd1 Ke8 18. Bf1 Kf8 19. Bf4 Kg8 20. Bh3 Re8 21. Bd6 Bc8 22. Re1 h6 23. f4 Bd7 24. Bg2 Bc6 25. Be5 Nd7 26. Bd6 Nb6 27. Bc7 Na4 28. Re3 Rac8 29. Ba5 Bd7 30. Ra2 f6 31. Bf3 Kf7 32. Rd2 g6 33. h4 h5 34. Kf1 Kg8 35. d5 exd5 36. Rxd5 Bh3+ 37. Ke1 Nc5 38. Be2 Be6 39. Rd6 Kg7 40. Bb4 a5 41. Bxc5 Rxc5 42. f5 Bc8 43. fxg6 b4 44. Rd4 Be6 45. Kd2 b3 46. f4 a4 47. f5 a3 48. Kc1 a2 49. Kb2 Ra8 50. Rd1 Rca5 51. Ra1 Rd8 52. Bd3 cxd3 53. fxe6 d2 54. e7 d1=Q 55. Rxd1 Rxd1 56. Kxb3 0-1

[Event "European Amateur Chess-ch 2022"]
[Site "Zagreb"]
[Date "2022.08.15"]
[Round "2.24"]
[White "Baric, Marko"]
[Black "Mesko, Andrej"]
[Result "1/2-1/2"]
[ECO "B12"]
[WhiteElo "1948"]
[BlackElo "2033"]
[Annotator "NA RC"]
[PlyCount "81"]
[EventDate "2022.08.14"]
[EventCountry "CRO"]
[SourceTitle "playchess.com"]
[Source "ChessBase"]
[SourceQuality "1"]
[TimeControl "40/5400+30:1800+30"]

1. e4 c6 2. d4 d5 3. e5 c5 4. dxc5 Nc6 5. Nf3 Bg4 6. c3 e6 7. Be3 Bxf3 8. Qxf3 Nxe5 9. Bb5+ Nc6 10. Bd4 a6 11. Bxc6+ bxc6 12. O-O Nf6 13. Nd2 Be7 14. b4 Qc7 15. Rfe1 O-O 16. a3 Rfd8 17. Qe2 Qf4 18. Be5 Qg4 19. Nb3 Qxe2 20. Rxe2 Nd7 21. Bd4 Rac8 22. Na5 e5 23. Be3 Bf6 24. Rd1 Nf8 25. Bc1 Ne6 26. Bb2 Nf4 27. Ree1 e4 28. Nb7 Rf8 29. Re3 Nd3 30. Ba1 Bg5 31. Re2 f5 32. Nd6 Rcd8 33. Rc2 Rd7 34. c4 Bf4 35. cxd5 cxd5 36. b5 Bxd6 37. cxd6 Rxd6 38. Rc7 Rf7 39. Rc8+ Rf8 40. Rc7 Rf7 41. Rc8+ 1/2-1/2

[Event "European Amateur Chess-ch 2022"]
[Site "Zagreb"]
[Date "2022.08.15"]
[Round "2.25"]
[White "Starcevic, Danijel"]
[Black "Faukovic, Matija"]
[Result "1-0"]
[ECO "A25"]
[WhiteElo "1935"]
[BlackElo "2026"]
[Annotator "NA RC"]
[PlyCount "67"]
[EventDate "2022.08.14"]
[EventCountry "CRO"]
[SourceTitle "playchess.com"]
[Source "ChessBase"]
[SourceQuality "1"]
[TimeControl "40/5400+30:1800+30"]

1. c4 e5 2. g3 Nc6 3. Bg2 f5 4. Nc3 Nf6 5. e3 d5 6. cxd5 Nb4 7. d3 Nfxd5 8. Nxd5 Nxd5 9. Nf3 Bd6 10. O-O Be6 11. e4 fxe4 12. Ng5 Qd7 13. Bxe4 O-O-O 14. Nxe6 Qxe6 15. Qf3 Ne7 16. Bxb7+ Kd7 17. Bg5 Bc5 18. Rac1 Bd4 19. Bxe7 Kxe7 20. Rxc7+ Rd7 21. Bc8 Rxc7 22. Bxe6 Kxe6 23. Kg2 g6 24. Qg4+ Kf7 25. f4 Kg7 26. fxe5 Bxe5 27. Qe6 Bxb2 28. d4 Bxd4 29. Qd6 Rc2+ 30. Kh3 Bb2 31. Qe7+ Kh6 32. Rf7 Rc4 33. Qe3+ Kh5 34. Qe2+ 1-0

[Event "European Amateur Chess-ch 2022"]
[Site "Zagreb"]
[Date "2022.08.16"]
[Round "3.1"]
[White "Vrban, Mladen"]
[Black "Brigljevic, Milan"]
[Result "1/2-1/2"]
[ECO "C30"]
[WhiteElo "2297"]
[BlackElo "2161"]
[Annotator "TA"]
[PlyCount "84"]
[EventDate "2022.08.14"]
[EventCountry "CRO"]
[SourceTitle "playchess.com"]
[Source "ChessBase"]
[SourceQuality "1"]
[TimeControl "40/5400+30:1800+30"]

{[%evp 9,84,-4,0,0,26,12,2,-4,9,11,7,9,6,7,4,-64,-48,-137,-122,-114,-120,-139,-70,-84,-102,-91,-93,-85,-76,-117,-72,-100,12,-150,-87,-75,-8,-124,-108,-123,0,0,0,-131,-131,-171,-158,-147,0,0,0,0,0,0,20,0,0,0,13,21,8,3,3,0,0,0,0,0,0,0,0,0,0,0,0,0,-7]} 1. e4 d6 2. f4 e5 3. d3 g6 4. Nf3 Bg7 5. Nc3 Nc6 6. Be2 {C30: King's Gambit Declined.} h6 7. O-O Nge7 8. Be3 {[#]} O-O $146 ({Predecessor:} 8... Nd4 9. Qd2 Be6 10. Rae1 c5 11. Nd1 Qd7 12. c3 Nxe2+ 13. Rxe2 exf4 14. Bxf4 g5 {0-1 (43) Pinski,J (2346)-Jaracz,P (2439) Krakow 1999}) 9. Qd2 exf4 10. Bxf4 g5 {[%cal Bg6g5,Bg5g4][%mdl 32]} 11. Be3 f5 12. exf5 (12. h3 $11) 12... Nxf5 $15 (12... Bxf5 13. d4 $11) 13. Bf2 (13. h3 $15) 13... g4 $17 14. Ne1 h5 15. d4 d5 {Inhibits Bc4.} (15... Nfxd4 16. Bc4+ Ne6 17. Qe2 $15) (15... Ncxd4 $17 16. Bc4+ Be6 17. Bxe6+ Nxe6) 16. Bd3 Bh6 17. Qe2 {[%cal Oc3d5]} Re8 $1 ({Don't play} 17... Ncxd4 $6 18. Bxd4 (18. Qe5 Bg7 $11) 18... Nxd4 19. Rxf8+ Qxf8 20. Qe5 $11) 18. Qd1 Ne3 19. Bxe3 Bxe3+ 20. Kh1 Qg5 {[#] Prevents Bg6.} ({Of course not} 20... Bxd4 $6 21. Bg6 Rf8 22. Nd3 $11) (20... Nxd4 $17 21. g3 Qg5) 21. Bb5 $2 ({White should play} 21. Nf3 $1 $11 gxf3 (21... Qg7 22. Nh4) 22. Qxf3) 21... Bd7 (21... h4 $142 22. Nd3 a6 23. Bxc6 bxc6) 22. Nd3 {[#]} Bxd4 (22... Rad8 $1 $17 23. Bxc6 Bxc6) 23. Ne2 (23. Nb4 $11 {keeps the balance.} Bxc3 24. bxc3) 23... Be3 24. Ndf4 Be6 {This bishop pair is nice.} (24... Re5 $17 {...Rf8 is the strong threat.} 25. c4 d4) 25. c4 $11 d4 $1 (25... dxc4 $2 26. Nxe6 Rxe6 27. Bxc4 $18) 26. Bxc6 (26. Nd5 $11) 26... bxc6 $17 27. Nxe6 Rxe6 28. Qd3 (28. Nxd4 $2 Rd6 29. Rf5 Qh6 $19) 28... Rf8 {Against Rf5} (28... h4 $17 {White must now prevent ...c5.} 29. c5 (29. Nxd4 $2 Rd6 $19) 29... Qe5) 29. Rxf8+ {The position is equal.} Kxf8 30. Nxd4 Bxd4 31. Qxd4 $11 {[%mdl 4096] Endgame KQR-KQR} Qe5 32. Rf1+ Ke7 33. Qxa7 Rf6 34. Rd1 Rf4 35. Qa3+ c5 36. Qd3 Rd4 {Inhibits Qd8+.} 37. Qh7+ Kd8 {[%cal Rd4d1]} 38. Rf1 {Threatens to win with Rf8+.} Rf4 {[%cal Rf4f1] Against Rf8+} 39. Rb1 Re4 {( -> ...Re1+)} 40. Rd1+ Rd4 {[%cal Rd4d1]} 41. Rg1 Kc8 42. Qh6 Kb7 {Weighted Error Value: White=0.30/Black=0.21 (precise)} 1/2-1/2

[Event "European Amateur Chess-ch 2022"]
[Site "Zagreb"]
[Date "2022.08.16"]
[Round "3.2"]
[White "Starcevic, Ante Leon"]
[Black "Buchcar, Tomas"]
[Result "1-0"]
[ECO "D11"]
[WhiteElo "2152"]
[BlackElo "2208"]
[Annotator "TA"]
[PlyCount "79"]
[EventDate "2022.08.14"]
[EventCountry "CRO"]
[SourceTitle "playchess.com"]
[Source "ChessBase"]
[SourceQuality "1"]
[TimeControl "40/5400+30:1800+30"]

{[%evp 9,79,0,22,21,31,24,25,0,12,3,34,23,39,33,39,17,27,2,18,15,3,0,37,45,34,42,101,89,180,159,158,161,158,173,237,233,279,268,265,264,260,250,262,240,279,284,260,244,269,277,275,198,361,355,349,347,382,381,393,384,500,421,493,395,447,0,441,452,481,452,495,392]} 1. d4 d5 2. c4 c6 3. Nf3 Nf6 4. e3 a6 5. Qb3 g6 6. Nc3 {D11: Slav Defence: 3 Nf3 sidelines and 3...Nf6 4 e3 Bg4.} Bg7 7. a4 O-O 8. Bd3 {White has an edge.} dxc4 9. Bxc4 c5 10. d5 $1 {Against Nc6} Nbd7 11. O-O Ne8 {[#]} 12. a5 $146 ({Predecessor:} 12. Rd1 Nd6 13. Be2 Ne5 14. Nd2 Qa5 15. Qc2 Bd7 16. Nb3 Qc7 17. a5 c4 18. Nd4 Rfc8 19. h3 {½-½ (84) Stern,R (2504)-Giemsa,S (2312) Berlin 2013}) 12... Nd6 13. Re1 b5 14. axb6 $1 Qxb6 15. e4 Rb8 16. Qxb6 Rxb6 17. Bf1 Nb5 {White leaves nothing to chance now.} (17... Rb4 $14) 18. Na4 $16 Rf6 (18... Rb7 $16) 19. Bg5 Rxf3 20. gxf3 Nd4 21. Kg2 {Threatens to win with Rac1.} ({Much less strong is} 21. Bxe7 Re8 22. Bd6 (22. Bxc5 Nxf3+ 23. Kg2 Nxe1+ 24. Rxe1 f5 $16) 22... Nxf3+ 23. Kg2 Nxe1+ 24. Rxe1 f5 $16) 21... Nc2 (21... f6 {might work better.}) 22. Bxe7 $18 Nxe1+ 23. Rxe1 Re8 24. Bxc5 Nxc5 25. Nxc5 Bxb2 26. Bxa6 Ba3 {[#]} 27. Bb5 $1 Rd8 28. Nb3 Bb2 29. f4 Bb7 30. Na5 Ba8 {[#]} (30... Bxd5 {was called for.} 31. exd5 Rxd5 32. Re8+ Kg7) 31. Nc6 Bxc6 32. Bxc6 {[%mdl 4096] Endgame KRB-KRB} ({Don't take} 32. dxc6 Rc8 33. Rd1 Bc3 $18) 32... Bd4 33. e5 Kf8 34. Re4 Bc3 35. Rc4 Bd2 36. Rd4 Bc1 37. Rc4 Bd2 38. d6 {White is clearly winning.} Rc8 39. Kf3 h6 40. Ke4 {Weighted Error Value: White=0.26 (precise) /Black=0.29 (precise)} 1-0

[Event "European Amateur Chess-ch 2022"]
[Site "Zagreb"]
[Date "2022.08.16"]
[Round "3.3"]
[White "Karlusic, Luka"]
[Black "Babic, Zvonko"]
[Result "1/2-1/2"]
[ECO "A21"]
[WhiteElo "2089"]
[BlackElo "2180"]
[Annotator "TA"]
[PlyCount "122"]
[EventDate "2022.08.14"]
[EventCountry "CRO"]
[SourceTitle "playchess.com"]
[Source "ChessBase"]
[SourceQuality "1"]
[TimeControl "40/5400+30:1800+30"]

{[%evp 18,122,41,0,51,54,56,55,58,42,60,64,57,52,60,22,25,11,8,0,0,0,16,0,14,-4,0,0,0,-12,-18,-53,-42,-60,-60,-59,-60,-62,-48,-66,-38,-35,-16,-16,-16,-18,0,0,0,0,0,0,0,0,0,0,0,0,0,0,0,0,0,0,0,0,0,-4,0,0,0,0,0,-7,0,0,0,-25,0,0,0,0,0,0,0,0,0,0,0,0,0,0,0,0,0,0,0,0,0,0,0,0,0,0,0,0,0]} 1. d4 d6 2. c4 e5 3. Nc3 exd4 4. Qxd4 Nc6 5. Qd2 g6 6. b3 Bg7 7. Bb2 Nf6 8. g3 O-O 9. Bg2 Re8 {9...Be6 is the hot move.} 10. Nh3 {[#]} Rb8 $146 {A21: English Opening: 1...e5 2 Nc3.} (10... Bxh3 $11 11. Bxh3 d5 12. Nxd5 Ne4) ({Predecessor:} 10... d5 11. cxd5 Bxh3 12. Bxh3 Nxd5 13. Nxd5 Bxb2 14. Rd1 Nd4 15. Qxb2 Qxd5 16. O-O Rad8 17. Bg2 Qe5 18. Kh1 Qxe2 {1-0 (58) Mamedyarov,S (2736)-Onischuk,V (2612) Berlin 2015}) 11. O-O Bxh3 12. Bxh3 Ne4 {White is slightly better.} 13. Nxe4 Rxe4 14. Bxg7 Kxg7 15. Bg2 Re8 16. Bxc6 bxc6 17. Qd4+ Kg8 $1 18. Rfe1 c5 19. Qc3 Qd7 20. Rad1 Qh3 21. Qf3 (21. e4 {feels hotter.} Re7 22. Re3 Rbe8 23. Rde1) 21... Re7 22. Rd5 Rbe8 23. e3 a5 24. Red1 Re4 25. Qf6 h5 26. Rg5 {[%cal Og5g6]} Qe6 27. Qxe6 R8xe6 $15 {[%mdl 4096] Endgame KRR-KRR} 28. Rgd5 h4 29. Kg2 hxg3 30. hxg3 Re8 31. Kf3 f5 32. Rg1 a4 33. g4 Rxg4 34. Rxg4 fxg4+ 35. Kxg4 $11 {KR-KR} Kg7 36. Kf3 axb3 37. axb3 Rb8 38. Rd3 Kf6 39. e4 Ra8 40. Ke3 Ra1 41. f3 Ra2 42. Kf4 Rg2 43. Rd5 g5+ 44. Ke3 Ke6 45. Rd3 c6 46. Rd2 {Prevents Rb2.} Rg1 47. Rb2 {Prevents Rb1.} Re1+ 48. Kf2 {The position is equal.} Rc1 49. Kg3 Ke5 50. Rd2 Rg1+ 51. Kf2 Rc1 52. Rd3 {Inhibits Rc3.} Rc2+ 53. Kg3 Rb2 54. Kg4 Rg2+ 55. Kh3 $1 Rg1 56. Kh2 Rb1 57. Kg3 Rc1 58. Kf2 Rh1 59. Kg2 Rh4 60. Kg3 Rf4 61. Rd1 Rf6 {Weighted Error Value: White=0.05 (flawless) /Black=0.05 (flawless)} 1/2-1/2

[Event "European Amateur Chess-ch 2022"]
[Site "Zagreb"]
[Date "2022.08.16"]
[Round "3.4"]
[White "Denic, Marin"]
[Black "Dzaja, Martin Zorislav"]
[Result "1-0"]
[ECO "D45"]
[WhiteElo "2190"]
[BlackElo "1974"]
[Annotator "TA"]
[PlyCount "133"]
[EventDate "2022.08.14"]
[EventCountry "CRO"]
[SourceTitle "playchess.com"]
[Source "ChessBase"]
[SourceQuality "1"]
[TimeControl "40/5400+30:1800+30"]

{[%evp 12,133,0,0,0,-14,11,-7,0,-15,0,-27,-23,-21,-28,-50,-29,-29,-6,-18,-20,-11,-9,-34,-39,-81,-73,-91,-76,-85,-94,-313,-309,-319,-296,-322,-322,-395,-397,-631,-660,-652,-625,-761,-733,-715,-636,-813,-810,-795,-785,-722,-620,-520,-412,-405,-384,-704,-379,-352,-8,-92,-40,-47,-44,-27,0,0,556,0,0,0,0,0,0,0,0,-54,0,0,0,0,59,52,206,123,123,123,120,120,120,45,52,101,552,0,0,0,0,0,0,0,0,0,294,0,0,0,0,0,0,0,0,0,0,0,8,0,29992,29993,29995,29996,29996,1077]} 1. d4 d5 2. c4 e6 3. Nf3 c6 4. e3 Nf6 5. Nc3 Nbd7 6. Bd2 Bd6 7. Bd3 dxc4 {D45: Semi-Slav: 5 e3.} 8. Bxc4 b5 9. Bb3 Bb7 {The position is equal.} 10. O-O O-O 11. Re1 {[#]} b4 $146 ({Predecessor:} 11... h6 12. e4 e5 13. h3 a5 14. a3 exd4 15. e5 Nxe5 16. Nxe5 dxc3 17. Bxc3 c5 {1-0 (28) Baez,J (1198)-Guimaraes,J (1118) LSS email 2010}) 12. Na4 Ne4 13. Qc2 Nxd2 14. Nxd2 Qc7 (14... c5 $5) 15. h3 c5 {[%cal Bc6c5,Bc5c4][%mdl 32]} 16. Rac1 {[%cal Rd4c5]} Rac8 17. Qb1 Qc6 {[%csl Gb7][%cal Rc6g2]} 18. e4 Bf4 $40 {[%mdl 128] Black attacks with force. This bishop pair is nice.} 19. Rc2 Bxd2 20. Rxd2 c4 21. Rc1 $2 (21. Bc2 $17 {keeps fighting.}) 21... Qb5 $19 (21... Qxe4 22. Qxe4 Bxe4 23. Bxc4 $11) 22. Bd1 Qg5 {Prevents Nc5.} 23. Re2 f5 {[%cal Bf7f5,Bf5e4,Be4e3,Be3f2][%mdl 32]} 24. Bc2 b3 {[%cal Bb4b3,Bb3a2][%mdl 32]} 25. Bd1 (25. f3 $142) 25... Bxe4 26. Rxe4 fxe4 27. Bg4 bxa2 28. Qa1 Qf6 29. Rf1 e3 30. Nc3 exf2+ 31. Kh1 Nb6 32. Qxa2 Rc7 33. Qa3 Nd5 {aiming for ...Ne3.} 34. Qd6 $2 (34. Nd1 Rcf7 35. Rxf2 Qxd4 36. Qd6 Rxf2 37. Nxf2 Qxf2 38. Bxe6+ Kh8 39. Bxd5) 34... Re7 {White must now prevent ...Nxc3.} 35. Ne4 Qf7 (35... Qxd4 36. Bxe6+ Rxe6 37. Qxe6+ Kh8 38. Rxf2 $11) ({Black should try} 35... Qh6 $19 {And now ...Ree8 would win.} 36. Rxf2 Rxf2 37. Nxf2 Qc1+ 38. Kh2 Qf4+ 39. Qxf4 Nxf4) 36. Ng5 (36. Rxf2 $11 {remains equal.} Nf6 37. Ng5) 36... Qf4 (36... Qg6 $17 37. Bxe6+ Kh8 38. Qxd5 h6 39. Nf7+ Rfxf7 40. Bxf7 Qxf7 41. Qxf7 Rxf7) 37. Bxe6+ $15 Kh8 38. Qxd5 h6 (38... Qf6 $5 {[%cal Rh7h6]}) 39. Nf3 {The board is on fire.} Qe3 {[%mdl 8192]} (39... Rfe8 $11 40. Bd7 Re1 41. Qxc4 R8e2 42. Qc8+ Kh7) 40. Bg4 $2 (40. Ne5 $18 {White wants to mate with Ng6+.} Ree8 41. Ng6+ Kh7 42. Nxf8+ Rxf8 43. Bf5+ Kh8 44. Qxc4 $1) 40... Qe2 $11 {[%csl LRb2,LRf1]} 41. Nh2 Qxb2 {Hoping for ...c3.} 42. Qxc4 Re1 43. Bf5 Qb7 44. Qc5 (44. Bc2 $11) 44... Qf7 (44... Qe7 $1 $15 45. Qxe7 Rxe7) 45. Bd3 {[%cal Bf5d3,Bd3f1,Bf1c4][%mdl 32]} Rd8 46. Nf3 Rxf1+ (46... Qb3 $1 $11 47. Nxe1 (47. Rxe1 $2 Qxd3 48. Rc1 f1=Q+ 49. Rxf1 Qxf1+ 50. Kh2 Qa6 $19) 47... fxe1=R 48. Rxe1 Qxd3) 47. Bxf1 $14 Qd7 $2 (47... Qb3 $14) 48. g3 (48. Qc2 $18) 48... Qd5 $16 49. Qxd5 ({Reject} 49. Kg2 $6 Qxc5 50. dxc5 Rc8 $11) 49... Rxd5 50. Kg2 a5 {[%cal Ba7a5,Ba5a4,Ba4a3][%mdl 32] [#]} 51. Kxf2 (51. Bc4 $1 $16 {[%cal Rc4d5]} Rd8 52. d5 (52. Kxf2 a4 $16)) 51... a4 $1 $14 52. Bc4 Ra5 {[%mdl 8192]} (52... Rd8 $16 {is tougher.}) 53. Ne5 $2 ({Only move:} 53. d5 $18 g5 54. d6) 53... a3 $11 54. Ba2 Rb5 55. Nd3 {Inhibits Rb2+.} g5 56. Ke3 Kg7 57. d5 {[%cal Bd4d5,Bd5d6,Bd6d7][%mdl 32]} Kf6 $2 {[%mdl 8192] [#]} (57... Kf8 $11) 58. Kd4 $2 ({White has to play} 58. d6 $1 $18) 58... Ke7 59. Ke5 Rb6 60. Kf5 Rf6+ 61. Ke5 Rf3 {[%csl LRd3,LRg3]} 62. d6+ Kd8 63. Nb4 {Strongly threatening Be6.} Re3+ 64. Kd4 Rxg3 $2 {[%mdl 8192]} (64... Re2 $11) 65. Be6 {White mates.} Rg1 66. Nc6+ Ke8 67. d7+ {What a fight!  Weighted Error Value: White=0.60/Black=0.67} 1-0